fUSD/lending_fUSD_20250906
["ID","MTS","AMOUNT","RATE_DAILY","PERIOD"]
[383819054,1757131635199,-154.81,0.00033351,2]
[383819055,1757131635221,-154.81,0.00037056,2]
[383819056,1757131635241,-193.0,0.00038,120]
[383819057,1757131635262,-192.0,0.00038,120]
[383819058,1757131635283,-105.61631857,0.000381,2]
[383819059,1757131636112,-500.0,0.00037206,7]
[383819060,1757131636132,-30.95721794,0.000381,2]
[383819061,1757131643086,-85.71653105,0.000381,2]
[383819062,1757131643107,-500.0,0.00038659,7]
[383819063,1757131643129,-154.81,0.00040762,2]
[383819064,1757131643151,-154.81,0.00044467,2]
[383819065,1757131643172,-300.0,0.00044998,5]
[383819066,1757131643192,-483.0,0.00044998,5]
[383819067,1757131643213,-840.40657444,0.00044999,5]
[383819068,1757131748101,-500.0,0.00034562,7]
[383819069,1757131748133,-500.0,0.00036005,7]
[383819070,1757131748178,-250.0,0.00038018,2]
[383819071,1757131748201,-346.63314863,0.00044774,6]
[383819072,1757131748224,-1359.59342556,0.00044999,5]
[383819073,1757131748245,-343.0,0.00044999,5]
[383819074,1757131748266,-218.04,0.00045,120]
[383819075,1757131748287,-1254.0,0.00045,120]
[383819076,1757131748311,-190.0,0.00045,30]
[383819077,1757131748337,-850.0,0.00045901,4]
[383819078,1757131748557,-500.0,0.00045902,120]
[383819079,1757131748579,-500.0,0.00045902,120]
[383819080,1757131748608,-500.0,0.00045902,120]
[383819081,1757131748633,-500.0,0.00045902,120]
[383819082,1757131748655,-500.0,0.00045902,120]
[383819083,1757131748677,-500.0,0.00045902,120]
[383819084,1757131748699,-500.0,0.00045902,120]
[383819085,1757131748721,-500.0,0.00045902,120]
[383819086,1757131748743,-472.13829384,0.00045902,120]
[383819087,1757131748768,-500.0,0.00045902,120]
[383819088,1757131748791,-342.74804107,0.00045902,120]
[383819089,1757131748814,-254.73979791,0.00045902,120]
[383819090,1757131748836,-151.0,0.00045903,2]
[383819091,1757131748857,-151.0,0.00045903,2]
[383819092,1757131748877,-151.0,0.00045903,2]
[383819093,1757131748898,-151.0,0.00045903,2]
[383819094,1757131748919,-151.0,0.00045903,2]
[383819095,1757131748940,-151.0,0.00045903,2]
[383819096,1757131748960,-151.0,0.00045903,2]
[383819097,1757131748982,-151.0,0.00045903,2]
[383819098,1757131749003,-151.0,0.00045903,2]
[383819099,1757131749028,-151.0,0.00045903,2]
[383819100,1757131749049,-151.0,0.00045903,2]
[383819101,1757131749071,-151.0,0.00045903,2]
[383819102,1757131749092,-151.0,0.00045903,2]
[383819103,1757131749113,-151.0,0.00045903,2]
[383819104,1757131749133,-151.0,0.00045903,2]
[383819105,1757131749154,-151.0,0.00045903,2]
[383819106,1757131749174,-151.0,0.00045903,2]
[383819107,1757131749194,-151.0,0.00045903,2]
[383819108,1757131749215,-151.0,0.00045903,2]
[383819109,1757131749235,-159.79994879,0.00045903,2]
[383819110,1757131749255,-17456.04,0.00045903,2]
[383819111,1757131749276,-1589.0,0.00045921,30]
[383819112,1757131749298,-449.0,0.00045927,5]
[383819113,1757131749318,-301.0,0.00045927,5]
[383819114,1757131749338,-583.8473635,0.00046,120]
[383819115,1757131749360,-600.0,0.00047911,5]
[383819116,1757131749381,-583.8473635,0.00048,120]
[383819117,1757131749407,-154.81,0.00048173,2]
[383819118,1757131749427,-195.5,0.00048628,60]
[383819119,1757131749446,-500.0,0.00050247,2]
[383819120,1757131749467,-500.0,0.00050838,10]
[383819121,1757131749487,-500.0,0.00050838,10]
[383819122,1757131749508,-501.00602644,0.00050838,3]
[383819123,1757131749529,-500.0,0.00050838,2]
[383819124,1757131749553,-159.90844724,0.00050838,10]
[383819125,1757131749581,-500.0,0.00050838,10]
[383819126,1757131749606,-502.50017223,0.00050838,10]
[383819127,1757131749627,-500.0,0.00050838,10]
[383819128,1757131749648,-500.0,0.00050838,10]
[383819129,1757131749669,-491.30814062,0.00050838,10]
[383819130,1757131749692,-500.0,0.00050838,5]
[383819131,1757131749714,-276.27704797,0.00050999,120]
[383819132,1757131749734,-187.44403215,0.00050999,120]
[383819133,1757131749756,-184.50857707,0.00050999,120]
[383819134,1757131749776,-500.0,0.00050999,31]
[383819135,1757131749797,-500.0,0.00050999,31]
[383819136,1757131749818,-370.90237481,0.00050999,31]
[383819137,1757131749839,-1167.694727,0.00051,120]
[383819138,1757131749860,-406.30783383,0.0005103,4]
[383819139,1757131749880,-329.11228716,0.00051385,10]
[383819140,1757131749901,-504.43756124,0.00051385,10]
[383819141,1757131749922,-503.0291965,0.00051617,10]
[383819142,1757131749943,-500.0,0.00051617,10]
[383819143,1757131749968,-154.81,0.00051879,2]
[383819144,1757131749990,-167.366,0.00051879,94]
[383819145,1757131750014,-167.41,0.00051924,2]
[383819146,1757131750036,-508.3297408,0.00052165,10]
[383819147,1757131750058,-253.75087001,0.00052421,2]
[383819148,1757131750079,-502.45019245,0.0005262,10]
[383819149,1757131750100,-500.0,0.0005262,10]
[383819150,1757131750124,-502.52701037,0.0005262,10]
[383819151,1757131750144,-367.46583261,0.0005295,5]
[383819152,1757131750164,-185.86071723,0.0005295,10]
[383819153,1757131750186,-504.10844152,0.0005295,10]
[383819154,1757131750207,-500.0,0.0005295,10]
[383819155,1757131750227,-511.70321143,0.0005295,10]
[383819156,1757131750249,-502.77076362,0.0005295,10]
[383819157,1757131750270,-500.0,0.0005295,10]
[383819158,1757131750290,-501.68924603,0.0005295,5]
[383819159,1757131750311,-500.0,0.0005295,10]
[383819160,1757131750331,-150.0,0.00053379,120]
[383819161,1757131750352,-459.01893152,0.00053398,120]
[383819162,1757131750376,-500.0,0.00053498,10]
[383819163,1757131750398,-561.94791673,0.00053498,10]
[383819164,1757131750418,-1459.61840875,0.00054,120]
[383819165,1757131750440,-400.0,0.00054246,120]
[383819166,1757131750461,-160.0,0.0005441,7]
[383819167,1757131750482,-1376.95,0.00054463,2]
[383819168,1757131750503,-142.38496987,0.00054749,120]
[383819169,1757131758160,-162.8022746,0.00051874,2]
[383819170,1757131760077,-1814.807316,0.00051874,2]
[383819172,1757131831758,-155.776,0.00038267,2]
[383819173,1757131831769,-583.8473635,0.00038267,120]
[383819174,1757131831779,-1112.203649,0.00038267,120]
[383819175,1757131831789,-5028.4404094,0.00051874,2]
[383819176,1757131831798,-503.0687654,0.00052483,10]
[383819177,1757131831808,-500.0,0.00052483,10]
[383819178,1757131831817,-500.0,0.00052483,10]
[383819179,1757131831827,-500.0,0.00053031,10]
[383819180,1757131831836,-7.61503013,0.00054749,120]
[383819181,1757131831848,-306.012621,0.000549,120]
[383819182,1757131831857,-412.36,0.00054906,2]
[383819183,1757131831867,-504.97451882,0.00054973,15]
[383819184,1757131831876,-892.59826841,0.0005499,2]
[383819185,1757131831887,-2555.82504865,0.00055,30]
[383819186,1757131832020,-92825.58441389,0.00055,30]
[383819187,1757131832031,-502.88253084,0.00055,15]
[383819188,1757131832042,-3000.0,0.00055,120]
[383819189,1757131832052,-185.21,0.00055575,2]
[383819190,1757131832062,-154.81,0.00055584,2]
[383819191,1757131832072,-1459.61840876,0.00056,120]
[383819192,1757131832083,-8347.61465721,0.00056321,15]
[383819193,1757131832092,-1301.1,0.00056421,2]
[383819194,1757131832102,-168.07,0.00056668,120]
[383819195,1757131832112,-150.0,0.0005712,2]
[383819196,1757131832122,-528.35098166,0.00057573,120]
[383819197,1757131832132,-816.29554672,0.00057578,120]
[383819198,1757131832142,-4000.0,0.0005763,30]
[383819199,1757131832151,-412.36,0.00057651,2]
[383819200,1757131832161,-8140.51,0.00057655,2]
[383819201,1757131832171,-8347.61465716,0.0005783,15]
[383819202,1757131832184,-500.0,0.00058069,120]
[383819203,1757131832194,-4416.21,0.00058071,2]
[383819204,1757131832203,-249.67,0.00058091,2]
[383819205,1757131832212,-250.0,0.00058879,120]
[383819206,1757131832222,-154.81,0.0005929,2]
[383819207,1757131832231,-8347.61465716,0.00059339,15]
[383819208,1757131832241,-166.66,0.00059841,2]
[383819209,1757131832251,-3000.0,0.0006,120]
[383819210,1757131832260,-2000.0,0.0006,120]
[383819211,1757131832270,-2000.0,0.0006,120]
[383819212,1757131832279,-992.33,0.0006,120]
[383819213,1757131832288,-271.309237,0.0006,120]
[383819214,1757131832298,-306.012621,0.00060087,120]
[383819215,1757131832307,-412.36,0.00060397,2]
[383819216,1757131832317,-8347.61465716,0.00060847,15]
[383819217,1757131832327,-500.0,0.00061267,120]
[383819218,1757131832336,-924.0,0.00061359,30]
[383819219,1757131832346,-500.0,0.00061534,2]
[383819220,1757131832356,-500.0,0.00061873,120]
[383819221,1757131832365,-200.0,0.00062,2]
[383819222,1757131832375,-200.0,0.00062039,30]
[383819223,1757131832384,-8347.61465716,0.00062356,15]
[383819224,1757131832394,-174.3036435,0.00062975,120]
[383819225,1757131832404,-161.96325461,0.00062975,120]
[383819226,1757131832414,-164.31133976,0.00062975,120]
[383819227,1757131832426,-163.61928261,0.00062975,120]
[383819228,1757131832435,-198.47671589,0.00062975,120]
[383819229,1757131832444,-158.84091403,0.00062975,120]
[383819230,1757131832454,-164.88859672,0.00062975,120]
[383819231,1757131832463,-412.36,0.00063142,2]
[383819232,1757131832473,-500.0,0.00063776,120]
[383819233,1757131832482,-8347.61465716,0.00063865,15]
[383819234,1757131832492,-500.0,0.00064333,3]
[383819235,1757131832501,-507.51153044,0.00064333,15]
[383819236,1757131832511,-150.0,0.00064351,30]
[383819237,1757131832521,-150.0,0.00064441,30]
[383819239,1757131832531,-180.19862115,0.00064698,120]
[383819240,1757131832540,-150.0,0.00064852,30]
[383819241,1757131832549,-150.0,0.00064963,30]
[383819244,1757131832559,-3000.0,0.00065,120]
[383819246,1757131832571,-3000.0,0.00065,120]
[383819247,1757131832580,-2000.0,0.00065,120]
[383819248,1757131832589,-306.012621,0.00065274,120]
[383819249,1757131832599,-8347.61465716,0.00065374,15]
[383819250,1757131832608,-400.0,0.00065753,120]
[383819251,1757131832617,-400.0,0.00065753,14]
[383819252,1757131832626,-400.0,0.00065753,120]
[383819253,1757131832636,-412.36,0.00065887,2]
[383819254,1757131832645,-8347.61465716,0.00066882,15]
[383819255,1757131832657,-320.64,0.00066992,14]
[383819256,1757131832667,-289.97236598,0.00067,120]
[383819257,1757131832676,-500.0,0.00067162,14]
[383819258,1757131832685,-173.54005922,0.00067162,15]
[383819259,1757131832695,-171.09744816,0.00067162,15]
[383819260,1757131832704,-377.53742754,0.00067879,28]
[383819261,1757131832714,-8000.0,0.00067889,120]
[383819262,1757131832723,-993.73553486,0.00067899,39]
[383819263,1757131832739,-446.07911514,0.00067899,39]
[383819264,1757131832750,-715.25,0.00067899,39]
[383819265,1757131832762,-890.41950948,0.00067899,39]
[383819266,1757131832771,-11991.92491312,0.00067899,15]
[383819267,1757131832781,-470.73025924,0.000679,120]
[383819268,1757131832790,-1538.87329776,0.000679,52]
[383819269,1757131832800,-156.98945273,0.000679,49]
[383819270,1757131832809,-151.0,0.0006797,120]
[383819271,1757131832819,-4675.07856767,0.00067973,120]
[383819272,1757131832831,-500.78541055,0.00067973,120]
[383819273,1757131832847,-20733.13602178,0.00067973,120]
[383819274,1757131832856,-168.3498695,0.00067973,14]
[383819275,1757131832866,-501.00918424,0.00067973,14]
[383819276,1757131832876,-500.96975753,0.00067973,15]
[383819277,1757131832886,-501.02365831,0.00067973,15]
[383819278,1757131832898,-257.95906207,0.00067979,112]
[383819279,1757131832908,-4917.09157533,0.00067989,5]
[383819280,1757131832918,-151.75,0.0006799,120]
[383819281,1757131832927,-151.75,0.0006799,120]
[383819282,1757131832935,-151.75,0.0006799,120]
[383819283,1757131832943,-151.75,0.0006799,120]
[383819284,1757131832953,-151.75,0.0006799,120]
[383819285,1757131832963,-151.75,0.0006799,120]
[383819286,1757131832972,-371.17605533,0.0006799,7]
[383819287,1757131832982,-151.0,0.00067997,120]
[383819288,1757131832993,-151.0,0.00067997,120]
[383819289,1757131833002,-161.22222097,0.00067998,120]
[383819290,1757131833012,-400.0,0.00067998,120]
[383819291,1757131833022,-400.0,0.00067998,120]
[383819292,1757131833031,-400.0,0.00067998,120]
[383819293,1757131833042,-400.0,0.00067998,120]
[383819294,1757131833052,-400.0,0.00067998,120]
[383819295,1757131833062,-313.90311947,0.00067998,120]
[383819296,1757131833072,-628.52,0.00067998,120]
[383819297,1757131833082,-3341.04,0.00067998,120]
[383819298,1757131833092,-400.0,0.00067998,14]
[383819299,1757131833102,-400.0,0.00067998,120]
[383819300,1757131833111,-400.0,0.00067998,120]
[383819301,1757131833121,-400.0,0.00067998,120]
[383819302,1757131833131,-166.28892212,0.00067998,120]
[383819303,1757131833141,-400.0,0.00067998,120]
[383819304,1757131833151,-400.0,0.00067998,120]
[383819305,1757131833161,-400.0,0.00067998,120]
[383819306,1757131833171,-902.15,0.00067998,120]
[383819307,1757131833181,-6877.19,0.00067998,120]
[383819308,1757131833191,-400.0,0.00067998,120]
[383819309,1757131833201,-400.0,0.00067998,120]
[383819310,1757131833211,-500.0,0.00067998,120]
[383819311,1757131833221,-861.31773058,0.00067998,120]
[383819312,1757131833231,-1000.0,0.00067998,120]
[383819313,1757131833241,-290.74481844,0.00067999,120]
[383819314,1757131833251,-400.0,0.00067999,120]
[383819315,1757131833260,-329.5196629,0.00067999,120]
[383819316,1757131833270,-400.0,0.00067999,120]
[383819317,1757131833279,-400.0,0.00067999,120]
[383819318,1757131833289,-400.0,0.00067999,120]
[383819319,1757131833298,-400.0,0.00067999,120]
[383819320,1757131833308,-400.0,0.00067999,120]
[383819321,1757131833318,-402.48558883,0.00067999,120]
[383819322,1757131833327,-400.0,0.00067999,120]
[383819323,1757131833336,-400.0,0.00067999,120]
[383819324,1757131833357,-400.0,0.00067999,120]
[383819325,1757131833368,-400.0,0.00067999,120]
[383819326,1757131833376,-400.0,0.00067999,120]
[383819327,1757131833385,-400.0,0.00067999,120]
[383819328,1757131833393,-400.0,0.00067999,120]
[383819329,1757131833403,-400.0,0.00067999,120]
[383819330,1757131833412,-400.0,0.00067999,120]
[383819331,1757131833422,-400.0,0.00067999,120]
[383819332,1757131833432,-400.0,0.00067999,120]
[383819333,1757131833441,-400.0,0.00067999,120]
[383819334,1757131833450,-400.0,0.00067999,120]
[383819335,1757131833459,-400.0,0.00067999,120]
[383819336,1757131833469,-400.0,0.00067999,120]
[383819337,1757131833479,-335.62985641,0.00067999,120]
[383819338,1757131833489,-400.0,0.00067999,120]
[383819339,1757131833500,-230.81,0.00067999,120]
[383819340,1757131833510,-150.0,0.00067999,120]
[383819341,1757131833519,-400.0,0.00067999,120]
[383819342,1757131833529,-400.0,0.00067999,120]
[383819343,1757131833539,-400.0,0.00067999,120]
[383819344,1757131833549,-400.0,0.00067999,120]
[383819345,1757131833559,-400.0,0.00067999,120]
[383819346,1757131833573,-400.0,0.00067999,120]
[383819347,1757131833584,-400.0,0.00067999,120]
[383819348,1757131833593,-400.0,0.00067999,120]
[383819349,1757131833603,-400.0,0.00067999,120]
[383819350,1757131833614,-400.0,0.00067999,120]
[383819351,1757131833623,-400.0,0.00067999,120]
[383819352,1757131833634,-400.0,0.00067999,120]
[383819353,1757131833644,-400.0,0.00067999,120]
[383819354,1757131833655,-400.0,0.00067999,120]
[383819355,1757131833665,-400.0,0.00067999,120]
[383819356,1757131833674,-400.0,0.00067999,120]
[383819357,1757131833684,-400.0,0.00067999,120]
[383819358,1757131833694,-185.42686823,0.00067999,120]
[383819359,1757131833703,-310.62413581,0.00067999,120]
[383819360,1757131833714,-400.0,0.00067999,120]
[383819361,1757131833724,-400.0,0.00067999,120]
[383819362,1757131833736,-400.0,0.00067999,120]
[383819363,1757131833746,-400.0,0.00067999,120]
[383819364,1757131833756,-400.0,0.00067999,120]
[383819365,1757131833766,-400.0,0.00067999,120]
[383819366,1757131833777,-400.0,0.00067999,120]
[383819367,1757131833787,-292.43614289,0.00067999,120]
[383819368,1757131833797,-400.0,0.00067999,120]
[383819369,1757131833807,-400.0,0.00067999,120]
[383819370,1757131833818,-400.0,0.00067999,120]
[383819371,1757131833829,-400.0,0.00067999,120]
[383819372,1757131833845,-366.56901593,0.00067999,120]
[383819373,1757131833855,-400.0,0.00067999,120]
[383819374,1757131833865,-400.0,0.00067999,120]
[383819375,1757131833874,-400.0,0.00067999,120]
[383819376,1757131833885,-400.0,0.00067999,120]
[383819377,1757131833894,-400.0,0.00067999,120]
[383819378,1757131833904,-400.0,0.00067999,120]
[383819379,1757131833914,-400.0,0.00067999,120]
[383819380,1757131833923,-365.84604785,0.00067999,120]
[383819381,1757131833933,-500.0,0.00067999,120]
[383819382,1757131833944,-400.0,0.00067999,120]
[383819383,1757131833954,-400.0,0.00067999,120]
[383819384,1757131833964,-491.87942138,0.00067999,120]
[383819385,1757131833974,-400.0,0.00067999,120]
[383819386,1757131833987,-421.56002433,0.00067999,120]
[383819387,1757131833997,-400.0,0.00067999,120]
[383819388,1757131834007,-346.17585871,0.00067999,120]
[383819389,1757131834017,-287.03847953,0.00067999,120]
[383819390,1757131834027,-199.0,0.00067999,45]
[383819391,1757131834038,-408.15032971,0.00067999,120]
[383819392,1757131834048,-212.22601901,0.00067999,120]
[383819393,1757131834059,-400.0,0.00067999,120]
[383819394,1757131834070,-400.0,0.00067999,120]
[383819395,1757131834261,-400.0,0.00067999,120]
[383819396,1757131834272,-400.0,0.00067999,120]
[383819397,1757131834282,-400.0,0.00067999,120]
[383819398,1757131834292,-400.0,0.00067999,120]
[383819399,1757131834301,-400.0,0.00067999,120]
[383819400,1757131834311,-400.0,0.00067999,120]
[383819401,1757131834320,-400.0,0.00067999,120]
[383819402,1757131834330,-400.0,0.00067999,120]
[383819403,1757131834340,-400.0,0.00067999,120]
[383819404,1757131834350,-400.0,0.00067999,120]
[383819405,1757131834359,-400.0,0.00067999,120]
[383819406,1757131834369,-400.0,0.00067999,120]
[383819407,1757131834382,-400.0,0.00067999,120]
[383819408,1757131834392,-400.0,0.00067999,120]
[383819409,1757131834403,-400.0,0.00067999,120]
[383819410,1757131834413,-400.0,0.00067999,120]
[383819411,1757131834422,-400.0,0.00067999,120]
[383819412,1757131834432,-400.0,0.00067999,120]
[383819413,1757131834441,-400.0,0.00067999,120]
[383819414,1757131834451,-400.0,0.00067999,120]
[383819415,1757131834461,-405.93911795,0.00067999,120]
[383819416,1757131834471,-400.0,0.00067999,120]
[383819417,1757131834481,-400.0,0.00067999,120]
[383819418,1757131834491,-400.0,0.00067999,120]
[383819419,1757131834501,-400.0,0.00067999,120]
[383819420,1757131834511,-400.0,0.00067999,120]
[383819421,1757131834521,-400.0,0.00067999,120]
[383819422,1757131834531,-400.0,0.00067999,120]
[383819423,1757131834541,-400.0,0.00067999,120]
[383819424,1757131834552,-364.2072787,0.00067999,120]
[383819425,1757131834561,-484.24575347,0.00067999,120]
[383819426,1757131834574,-400.0,0.00067999,120]
[383819427,1757131834583,-400.0,0.00067999,120]
[383819428,1757131834593,-400.0,0.00067999,120]
[383819429,1757131834602,-749.63,0.00067999,120]
[383819430,1757131834612,-400.0,0.00067999,120]
[383819431,1757131834622,-749.63,0.00067999,120]
[383819432,1757131834631,-415.35,0.00067999,120]
[383819433,1757131834642,-749.63,0.00067999,120]
[383819434,1757131834651,-749.63,0.00067999,120]
[383819435,1757131834661,-749.63,0.00067999,120]
[383819436,1757131834670,-749.63,0.00067999,120]
[383819437,1757131834680,-749.63,0.00067999,120]
[383819438,1757131834690,-749.63,0.00067999,120]
[383819439,1757131834699,-400.0,0.00067999,120]
[383819440,1757131834709,-400.0,0.00067999,120]
[383819441,1757131834722,-400.0,0.00067999,120]
[383819442,1757131834733,-400.0,0.00067999,120]
[383819443,1757131834743,-400.0,0.00067999,120]
[383819444,1757131834753,-400.0,0.00067999,120]
[383819445,1757131834763,-400.0,0.00067999,120]
[383819446,1757131834772,-400.0,0.00067999,120]
[383819447,1757131834782,-400.0,0.00067999,120]
[383819448,1757131834791,-400.0,0.00067999,120]
[383819449,1757131834800,-400.0,0.00067999,120]
[383819450,1757131834810,-197.65531018,0.00067999,120]
[383819451,1757131834819,-400.0,0.00067999,120]
[383819452,1757131834830,-400.0,0.00067999,120]
[383819453,1757131834839,-400.0,0.00067999,120]
[383819454,1757131834849,-384.13695341,0.00067999,120]
[383819455,1757131834866,-15.86304659,0.00067999,120]
[383819456,1757131834876,-400.0,0.00067999,120]
[383819457,1757131834886,-400.0,0.00067999,120]
[383819458,1757131834895,-400.0,0.00067999,120]
[383819459,1757131834905,-400.0,0.00067999,120]
[383819460,1757131834915,-400.0,0.00067999,120]
[383819461,1757131834925,-400.0,0.00067999,120]
[383819462,1757131834936,-400.0,0.00067999,120]
[383819463,1757131834946,-400.0,0.00067999,120]
[383819464,1757131834958,-400.0,0.00067999,120]
[383819465,1757131834967,-400.0,0.00067999,120]
[383819466,1757131834978,-400.0,0.00067999,120]
[383819467,1757131834987,-400.0,0.00067999,120]
[383819468,1757131834997,-150.0,0.00067999,120]
[383819469,1757131835007,-400.0,0.00067999,120]
[383819470,1757131835017,-400.0,0.00067999,120]
[383819471,1757131835026,-400.0,0.00067999,120]
[383819472,1757131835036,-400.0,0.00067999,120]
[383819473,1757131835046,-400.0,0.00067999,120]
[383819474,1757131835055,-400.0,0.00067999,120]
[383819475,1757131835064,-400.0,0.00067999,120]
[383819476,1757131835073,-400.0,0.00067999,120]
[383819477,1757131835083,-400.0,0.00067999,120]
[383819478,1757131835092,-400.0,0.00067999,120]
[383819479,1757131835101,-400.0,0.00067999,120]
[383819480,1757131835110,-400.0,0.00067999,120]
[383819481,1757131835120,-400.0,0.00067999,120]
[383819482,1757131835129,-400.0,0.00067999,120]
[383819483,1757131835139,-400.0,0.00067999,120]
[383819484,1757131835148,-400.0,0.00067999,120]
[383819485,1757131835157,-400.0,0.00067999,120]
[383819486,1757131835167,-400.0,0.00067999,120]
[383819487,1757131835177,-400.0,0.00067999,120]
[383819488,1757131835187,-547.85064963,0.00067999,120]
[383819489,1757131835196,-400.0,0.00067999,120]
[383819490,1757131835205,-239.79493956,0.00067999,120]
[383819491,1757131835214,-400.0,0.00067999,120]
[383819492,1757131835224,-400.0,0.00067999,120]
[383819493,1757131835233,-400.0,0.00067999,120]
[383819494,1757131835244,-400.0,0.00067999,120]
[383819495,1757131835254,-400.0,0.00067999,120]
[383819496,1757131835263,-400.0,0.00067999,120]
[383819497,1757131835273,-400.0,0.00067999,120]
[383819498,1757131835282,-400.0,0.00067999,120]
[383819499,1757131835291,-400.0,0.00067999,120]
[383819500,1757131835301,-400.0,0.00067999,120]
[383819501,1757131835310,-400.0,0.00067999,120]
[383819502,1757131835320,-400.0,0.00067999,120]
[383819503,1757131835329,-517.41246974,0.00067999,120]
[383819504,1757131835338,-400.0,0.00067999,120]
[383819505,1757131835348,-400.0,0.00067999,120]
[383819506,1757131835358,-411.52725835,0.00067999,120]
[383819507,1757131835367,-400.0,0.00067999,120]
[383819508,1757131835376,-400.0,0.00067999,120]
[383819509,1757131835386,-400.0,0.00067999,120]
[383819510,1757131835395,-400.0,0.00067999,120]
[383819511,1757131835405,-400.0,0.00067999,120]
[383819512,1757131835415,-400.0,0.00067999,120]
[383819513,1757131835424,-400.0,0.00067999,120]
[383819514,1757131835433,-400.0,0.00067999,120]
[383819515,1757131835443,-400.0,0.00067999,120]
[383819516,1757131835452,-400.0,0.00067999,120]
[383819517,1757131835461,-400.0,0.00067999,120]
[383819518,1757131835471,-400.0,0.00067999,120]
[383819519,1757131835480,-400.0,0.00067999,120]
[383819520,1757131835489,-400.0,0.00067999,120]
[383819521,1757131835499,-569.52306926,0.00067999,120]
[383819522,1757131835512,-429.47693074,0.00067999,120]
[383819523,1757131835521,-400.0,0.00067999,120]
[383819524,1757131835530,-401.1499996,0.00067999,120]
[383819525,1757131835540,-628.52,0.00067999,120]
[383819526,1757131835549,-628.52,0.00067999,120]
[383819527,1757131835558,-628.52,0.00067999,120]
[383819528,1757131835572,-628.52,0.00067999,120]
[383819529,1757131835583,-628.52,0.00067999,120]
[383819530,1757131835592,-628.52,0.00067999,120]
[383819531,1757131835602,-628.52,0.00067999,120]
[383819532,1757131835613,-561.96015726,0.00067999,120]
[383819533,1757131837659,-261.2403697,0.00054999,120]
[383819534,1757131837669,-459.63166237,0.00054999,31]
[383819535,1757131837679,-455.48782456,0.00054999,31]
[383819536,1757131837691,-44.51217544,0.00054999,31]
[383819537,1757131837701,-557.93157714,0.00067999,120]
[383819538,1757131837924,-2221.1482656,0.00067999,120]
[383819539,1757131837935,-3341.04,0.00067999,120]
[383819540,1757131837944,-3341.04,0.00067999,120]
[383819541,1757131837953,-3341.04,0.00067999,120]
[383819542,1757131837964,-3341.04,0.00067999,120]
[383819543,1757131837973,-3341.04,0.00067999,120]
[383819544,1757131837983,-3259.65173441,0.00067999,120]
[383819545,1757131837996,-81.38826559,0.00067999,120]
[383819546,1757131838005,-400.0,0.00067999,14]
[383819547,1757131838015,-321.70892472,0.00067999,14]
[383819548,1757131838024,-387.16398135,0.00067999,120]
[383819549,1757131838033,-400.0,0.00067999,120]
[383819550,1757131838043,-400.0,0.00067999,120]
[383819551,1757131838052,-400.0,0.00067999,120]
[383819552,1757131838062,-400.0,0.00067999,120]
[383819553,1757131838072,-400.0,0.00067999,120]
[383819554,1757131838081,-400.0,0.00067999,120]
[383819555,1757131838090,-400.0,0.00067999,120]
[383819556,1757131838099,-400.0,0.00067999,120]
[383819557,1757131838108,-400.0,0.00067999,120]
[383819558,1757131838118,-400.0,0.00067999,120]